bitfinex/quotes_SOLUSD_20250102
["timestamp","ask_amount","ask_price","bid_price","bid_amount"]
[1735830635260,20.0163494,207.92,207.91,5.0]
[1735830635660,20.0163494,207.93,207.91,5.0]
[1735830637173,20.0163494,207.92,207.91,5.0]
[1735830637989,20.0163494,207.92,207.89,5.0]
[1735830638172,20.0163494,207.91,207.89,5.0]
[1735830638780,20.0163494,207.92,207.89,5.0]
[1735830638974,20.0163494,207.93,207.89,5.0]
[1735830639285,20.0163494,207.93,207.92,5.0]
[1735830639685,20.0,207.93,207.92,5.0]
[1735830639883,20.0163494,207.97,207.94,5.0]
[1735830640181,20.0163494,207.97,207.96,5.0]
[1735830640584,20.0163494,207.99,207.96,5.0]
[1735830640764,20.0163494,207.99,207.98,5.0]
[1735830640964,20.0163494,208.01,208.0,5.0]
[1735830642376,32.0349494,208.01,208.0,5.0]
[1735830642685,20.0,207.99,207.98,5.0]
[1735830642863,40.0163494,207.99,207.98,5.0]
[1735830644088,52.0366494,207.99,207.96,5.0]
[1735830644261,20.0,207.95,207.94,5.0]
[1735830644587,20.0163494,207.97,207.96,5.0]
[1735830646093,12.0203,207.99,207.84,5.7214275]
[1735830646094,32.0366494,207.99,207.98,5.0]
[1735830646471,20.0163494,208.01,208.0,5.0]
[1735830646804,43.278337,208.18,207.93,20.0163494]
[1735830646805,20.0163494,208.05,208.04,5.0]
[1735830647170,20.0,208.05,208.04,5.0]
[1735830647366,32.0303494,208.09,208.06,5.0]
[1735830647677,20.0163494,208.11,208.1,5.0]
[1735830648968,20.0,208.09,208.08,5.0]
[1735830649965,40.0163494,208.09,208.08,5.0]
[1735830650970,40.0163494,208.09,208.06,5.0]
[1735830651400,40.0163494,208.09,208.08,5.0]
[1735830653300,20.0163494,208.09,208.08,5.0]
[1735830653498,20.0163494,208.11,208.1,5.0]
[1735830653879,20.0163494,208.15,208.12,5.0]
[1735830654093,20.0163494,208.15,208.14,5.0]
[1735830654508,20.0163494,208.17,208.14,5.0]
[1735830654974,40.0163494,208.15,208.14,5.0]
[1735830656388,12.0111,208.14,208.1,5.0]
[1735830656588,20.0163494,208.12,208.1,5.0]
[1735830656906,20.0,208.09,208.08,5.0]
[1735830657096,40.0163494,208.09,208.08,5.0]
[1735830658920,20.0,208.09,208.08,5.0]
[1735830659213,20.0163494,208.1,208.08,5.0]
[1735830659586,20.0163494,208.13,208.08,5.0]
[1735830659898,12.0111,208.14,208.12,5.0]
[1735830660079,20.0,208.11,208.1,5.0]
[1735830660499,40.0163494,208.11,208.08,5.0]
[1735830660694,20.0163494,208.09,208.08,5.0]
[1735830662304,12.0111,208.15,208.13,5.0]
[1735830662797,24.0133,208.22,208.13,5.0]
[1735830662798,20.0163494,208.18,208.13,5.0]
[1735830663003,20.0163494,208.18,208.15,5.0]
[1735830663192,20.0163494,208.2,208.15,5.0]
[1735830663394,20.0163494,208.18,208.15,5.0]
[1735830663606,20.0163494,208.19,208.15,5.0]
[1735830663820,20.0163494,208.19,208.17,5.0]
[1735830664110,20.0163494,208.22,208.17,5.0]
[1735830664311,12.0065,208.23,208.21,5.0]
[1735830664481,20.0163494,208.24,208.23,5.0]
[1735830666298,20.0163494,208.26,208.23,5.0]
[1735830666682,20.0163494,208.26,208.25,5.0]
[1735830666880,20.0163494,208.3,208.27,5.0]
[1735830667082,20.0163494,208.3,208.18,0.72033673]
[1735830667083,20.0163494,208.31,208.29,5.0]
[1735830667398,11.9996,208.34,208.31,5.0]
[1735830667586,40.0163494,208.32,208.31,5.0]
[1735830667790,20.0163494,208.32,208.31,5.0]
[1735830668706,40.0163494,208.32,208.31,5.0]
[1735830668924,20.0,208.28,208.25,5.0]
[1735830669111,20.0163494,208.26,208.25,5.0]
[1735830669517,20.0163494,208.27,208.25,5.0]
[1735830669701,20.0163494,208.26,208.25,5.0]
[1735830669904,20.0,208.23,208.22,5.0]
[1735830671100,40.0163494,208.25,208.22,5.0]
[1735830671303,20.0163494,208.23,208.22,5.0]
[1735830671617,20.0163494,208.23,208.2,5.0]
[1735830672112,20.0163494,208.21,208.18,5.0]
[1735830672427,20.0163494,208.2,208.18,5.0]
[1735830672618,20.0163494,208.19,208.18,5.0]
[1735830672797,20.0,208.17,208.16,5.0]
[1735830673002,20.0163494,208.18,208.16,5.0]
[1735830673616,12.0087,208.19,208.12,5.0]
[1735830673617,40.0163494,208.17,208.12,5.0]
[1735830673820,12.0087,208.19,208.05,20.0163494]
[1735830673821,20.0,208.1,208.09,5.0]
[1735830674006,40.0163494,208.1,208.06,5.0]
[1735830674208,20.0163494,208.07,208.06,5.0]
[1735830674521,20.0,208.04,208.02,5.0]
[1735830674688,20.0163494,208.03,208.02,5.0]
[1735830675429,20.0163494,208.03,208.0,5.0]
[1735830675736,20.0163494,208.04,208.0,5.0]
[1735830676035,20.0,208.02,208.0,5.0]
[1735830676324,20.0163494,208.07,208.02,5.0]
[1735830676492,20.0163494,208.08,208.05,5.0]
[1735830676694,40.0163494,208.06,208.05,5.0]
[1735830677013,40.0163494,208.06,208.03,5.0]
[1735830677321,20.0163494,208.05,208.03,5.0]
[1735830677523,20.0163494,208.04,208.01,5.0]
[1735830677896,20.0163494,208.03,208.01,5.0]
[1735830678704,20.0,208.0,207.96,5.0]
[1735830678904,20.0163494,207.98,207.96,5.0]
[1735830679111,20.0163494,207.97,207.96,5.0]
[1735830680106,20.0163494,207.99,207.98,5.0]
[1735830680310,32.0351494,208.01,207.98,5.0]
[1735830680535,20.0163494,208.0,207.98,5.0]
[1735830681030,20.0163494,208.0,207.9,6.3894]
[1735830681031,40.0163494,207.99,207.96,5.0]
[1735830681342,20.0163494,207.97,207.96,5.0]
[1735830681500,20.0163494,207.98,207.96,5.0]
[1735830681705,20.0,207.98,207.96,5.0]
[1735830681924,32.0351494,208.01,208.0,5.0]
[1735830682312,20.0163494,208.02,208.0,5.0]
[1735830682518,20.0163494,208.01,207.98,5.0]
[1735830682718,40.0163494,208.02,207.98,5.0]
[1735830682915,20.0163494,208.01,207.98,5.0]
[1735830683538,20.0,207.99,207.98,5.0]
[1735830683735,20.0163494,208.0,207.98,5.0]
[1735830683939,40.0163494,207.99,207.98,5.0]
[1735830684543,20.0163494,208.0,207.98,5.0]
[1735830685040,20.0,207.97,207.96,5.0]
[1735830685216,40.0163494,207.97,207.96,5.0]
[1735830687646,20.0,207.97,207.96,5.0]
[1735830688021,40.0163494,207.97,207.96,5.0]
[1735830690014,40.0163494,207.97,207.9,6.3894]
[1735830690355,20.0163494,207.94,207.87,1.6392]
[1735830690525,40.0163494,207.93,207.87,1.6392]
[1735830690741,20.0,207.93,207.87,21.6555494]
[1735830690912,20.0,207.89,207.85,6.2895]
[1735830691224,20.0163494,207.89,207.82,20.0163494]
[1735830691544,20.0163494,207.91,207.84,20.0163494]
[1735830691734,20.0,207.89,207.84,20.0163494]
[1735830691930,12.0237,207.93,207.86,20.0163494]
[1735830692149,12.0237,207.93,207.87,20.0163494]
[1735830692312,12.0237,207.93,207.86,20.0163494]
[1735830692520,20.0163494,207.92,207.85,20.0163494]
[1735830692729,32.0400494,207.93,207.85,20.0163494]
[1735830692939,32.0407494,207.91,207.84,20.0163494]
[1735830693155,32.0407494,207.91,207.82,0.25098]
[1735830693156,20.0,207.88,207.83,20.0163494]
[1735830693356,20.0,207.88,207.84,20.0163494]
[1735830694034,20.0,207.88,207.85,20.0163494]
[1735830694231,20.0163494,207.93,207.85,20.0163494]
[1735830694435,20.0163494,207.93,207.86,20.0163494]
[1735830694736,20.0,207.9,207.86,20.0163494]
[1735830695565,20.0163494,207.95,207.87,20.1418394]
[1735830695769,12.0198,207.99,207.88,20.0163494]
[1735830695770,20.0163494,207.96,207.88,20.0163494]
[1735830695931,20.0163494,207.95,207.87,20.0163494]
[1735830696358,20.0163494,207.94,207.87,20.0163494]
[1735830696532,12.0198,207.99,207.92,20.0163494]
[1735830696834,12.018,208.02,207.96,20.0163494]
[1735830697029,20.0163494,208.05,207.98,20.0163494]
[1735830697537,20.0,208.02,207.98,20.0163494]
[1735830698471,20.0,208.0,207.95,20.0163494]
[1735830698652,20.0163494,208.01,207.94,20.0163494]
[1735830699165,20.0163494,208.02,207.94,20.0163494]
[1735830699752,20.0,207.99,207.94,20.0163494]
[1735830699935,20.0,207.99,207.93,1.6533]
[1735830700145,20.0,207.99,207.91,26.2300494]
[1735830700344,20.0,207.99,207.93,20.0163494]
[1735830701385,32.02,207.99,207.93,20.0163494]
[1735830701547,20.0163494,208.05,207.97,20.0163494]
[1735830701745,20.0163494,208.06,207.98,20.0163494]
[1735830702274,32.0320494,208.06,207.98,20.0163494]
[1735830702480,12.0157,208.06,207.99,20.0163494]
[1735830702775,20.0163494,208.05,207.97,20.0163494]
[1735830702973,20.0163494,208.03,207.94,0.72105359]
[1735830703179,20.0163494,208.02,207.94,20.0163494]
[1735830703472,20.0,208.0,207.94,20.0163494]
[1735830703678,32.0356494,208.0,207.92,20.0163494]
[1735830703866,20.0163494,207.99,207.91,20.0163494]
[1735830704079,12.0193,208.0,207.94,20.0163494]
[1735830705578,20.0163494,208.0,207.9,24.153354]
[1735830705872,20.0163494,208.0,207.92,0.12549]
[1735830706055,20.0163494,207.98,207.92,0.12549]
[1735830706483,20.0163494,207.98,207.91,20.0163494]
[1735830706656,20.0163494,207.98,207.89,20.0163494]
[1735830707057,20.0163494,207.98,207.91,20.0163494]
[1735830707955,1.79176277,208.06,207.89,20.0163494]
[1735830707956,20.0,207.95,207.89,20.0163494]
[1735830708159,20.0163494,207.94,207.86,26.3178494]
[1735830708383,20.0163494,207.92,207.86,6.3015]
[1735830708587,20.0163494,207.92,207.84,20.0163494]
[1735830708790,20.0163494,207.9,207.82,20.0163494]
[1735830709100,20.0163494,207.88,207.81,8.0608]
[1735830709460,20.0163494,207.88,207.81,6.427]
[1735830710161,12.0252,207.9,207.76,27.9717494]
[1735830710162,20.0163494,207.83,207.76,27.9717494]
[1735830710491,20.0163494,207.82,207.75,20.0163494]
[1735830710706,20.0163494,207.8,207.73,20.0163494]
[1735830711195,20.0,207.84,207.72,20.1418394]
[1735830711196,20.0163494,207.79,207.72,20.1418394]
[1735830711698,20.0,207.77,207.73,20.0163494]
[1735830712061,20.0163494,207.8,207.73,20.0163494]
[1735830712289,20.0163494,207.81,207.73,20.0163494]
[1735830712700,40.0163494,207.8,207.73,20.0163494]
[1735830712994,20.0,207.79,207.74,20.0163494]
[1735830713564,20.0,207.78,207.73,20.0163494]
[1735830713872,20.0,207.78,207.71,26.4664494]
[1735830714070,20.0163494,207.78,207.71,20.0163494]
[1735830714287,20.0163494,207.75,207.67,20.0163494]
[1735830714479,20.0163494,207.76,207.68,20.0163494]
[1735830715172,20.0163494,207.76,207.7,20.0163494]
[1735830715374,20.0163494,207.78,207.7,20.0163494]
[1735830716178,20.0163494,207.78,207.72,20.0163494]
[1735830716365,20.0163494,207.78,207.7,20.0163494]
[1735830718069,20.0163494,207.8,207.73,0.12549]
[1735830718273,20.0163494,207.79,207.72,20.0163494]
[1735830718473,20.0163494,207.8,207.72,20.0163494]
[1735830718890,12.0289,207.84,207.69,0.72193889]
[1735830718891,20.0163494,207.82,207.75,0.12549]
[1735830719789,20.0163494,207.82,207.74,20.0163494]
[1735830720391,20.0163494,207.82,207.75,0.12549]
[1735830720573,32.0448494,207.84,207.76,20.0163494]
[1735830720771,20.0,207.81,207.74,20.0163494]
[1735830721306,20.0,207.81,207.71,0.72190309]
[1735830721307,20.0163494,207.8,207.72,20.0163494]
[1735830721485,20.0,207.81,207.74,20.0163494]
[1735830722275,20.0163494,207.8,207.72,20.0163494]
[1735830722602,20.0163494,207.78,207.7,20.0163494]
[1735830723216,20.0163494,207.78,207.71,0.12549]
[1735830723578,20.0163494,207.78,207.7,20.0163494]
[1735830723902,20.0,207.75,207.69,0.12549]
[1735830724079,20.0,207.75,207.69,0.25098]
[1735830724285,20.0163494,207.8,207.72,20.0163494]
[1735830724499,20.0163494,207.8,207.73,0.12549]
[1735830724708,20.0163494,207.8,207.72,20.0163494]
[1735830725918,20.0,207.77,207.72,20.0163494]
[1735830726396,20.0163494,207.82,207.74,20.0163494]
[1735830726969,20.0163494,207.8,207.72,20.0163494]
[1735830727473,12.0289,207.84,207.68,0.72190767]
[1735830727474,20.0163494,207.84,207.76,20.0163494]
[1735830727671,20.0163494,207.86,207.78,20.0163494]
[1735830728291,20.0163494,207.88,207.81,0.12549]
[1735830728502,20.0163494,207.92,207.84,20.0163494]
[1735830729281,25.7054,207.98,207.87,0.12549]
[1735830729282,20.0163494,207.94,207.87,0.12549]
[1735830729471,20.0163494,207.94,207.87,0.25098]
[1735830729690,20.0163494,207.98,207.91,20.0163494]
[1735830729890,20.0163494,207.97,207.9,20.0163494]
[1735830730479,20.0163494,207.99,207.92,20.0163494]
[1735830730694,20.0163494,208.0,207.92,20.0163494]
[1735830731111,20.0163494,208.0,207.88,0.84683354]
[1735830731112,20.0163494,207.98,207.9,20.0163494]
[1735830731796,20.0163494,207.96,207.88,20.0163494]
[1735830731981,37.6715,208.04,207.87,7.9642]
[1735830731982,20.0163494,207.94,207.87,27.9805494]
[1735830732180,20.0163494,207.94,207.87,26.3553494]
[1735830732400,20.0163494,207.94,207.87,6.339]
[1735830732703,20.0163494,207.92,207.87,6.339]
[1735830732906,20.0,207.91,207.88,0.12549]
[1735830733088,32.0383494,207.96,207.89,20.0163494]
[1735830733408,20.0,207.93,207.87,6.339]
[1735830733774,20.0,207.93,207.88,0.12549]
[1735830734026,20.0,207.93,207.88,20.1418394]
[1735830735109,40.0163494,207.94,207.88,0.12549]
[1735830735601,40.0163494,207.94,207.87,6.339]
[1735830735812,40.0163494,207.94,207.86,20.0163494]
[1735830735813,20.0,207.89,207.86,20.0163494]
[1735830735976,20.0,207.89,207.84,20.0163494]
[1735830736606,20.0163494,207.86,207.78,20.0163494]
[1735830736782,20.0163494,207.84,207.77,6.5697]
[1735830737108,20.0,207.79,207.74,20.0163494]
[1735830737608,20.0163494,207.84,207.77,0.25098]
[1735830737900,20.0163494,207.84,207.76,20.0163494]
[1735830738492,20.0163494,207.84,207.77,0.25098]
[1735830738687,20.0163494,207.84,207.76,20.0163494]
[1735830739002,40.0163494,207.82,207.75,0.25098]
[1735830739506,40.0163494,207.82,207.74,20.0163494]
[1735830739806,20.0163494,207.8,207.72,26.5860494]
[1735830740009,20.0163494,207.78,207.71,1.5704]
[1735830740317,20.0163494,207.78,207.7,20.0163494]
[1735830740778,20.0163494,207.78,207.71,0.25098]
[1735830741094,20.0163494,207.8,207.72,20.0163494]
[1735830741293,20.0,207.77,207.73,0.12549]
[1735830741492,20.0163494,207.8,207.69,0.72192116]
[1735830741493,20.0163494,207.8,207.74,20.0163494]
[1735830741718,32.0464494,207.82,207.74,20.0163494]
[1735830741882,20.0163494,207.84,207.76,20.0163494]
[1735830742079,20.0,207.81,207.75,20.2673294]
[1735830742891,20.0,207.83,207.75,20.2673294]
[1735830744024,20.0163494,207.79,207.72,20.0163494]
[1735830744192,20.0163494,207.81,207.73,0.25098]
[1735830744806,20.0163494,207.77,207.69,20.0163494]
[1735830745721,20.0163494,207.77,207.7,0.12549]
[1735830747488,24.0519,207.89,207.7,0.12549]
[1735830747489,20.0163494,207.79,207.72,0.25098]
[1735830747806,36.0801,207.87,207.69,20.0163494]
[1735830747807,20.0163494,207.77,207.69,20.0163494]
[1735830748105,20.0163494,207.75,207.66,20.0163494]
[1735830748312,20.0163494,207.73,207.66,20.0163494]
[1735830748707,20.0163494,207.69,207.61,20.0163494]
[1735830751688,20.0163494,207.67,207.6,0.12549]
[1735830752017,20.0163494,207.69,207.61,20.0163494]
[1735830752181,20.0163494,207.69,207.63,20.0163494]
[1735830752609,20.0163494,207.75,207.67,20.0163494]
[1735830752787,20.0163494,207.77,207.69,20.0163494]
[1735830752986,20.0163494,207.74,207.66,6.1372]
[1735830753204,20.0,207.71,207.66,6.1372]
[1735830753414,20.0163494,207.74,207.67,20.0163494]
[1735830753606,20.0163494,207.76,207.67,20.0163494]
[1735830753917,20.0,207.73,207.68,0.12549]
[1735830754715,20.0,207.73,207.66,6.1372]
[1735830756420,20.0,207.73,207.67,20.0163494]
[1735830757118,12.0337,207.75,207.67,20.0163494]
[1735830757421,20.0163494,207.8,207.73,20.0163494]
[1735830757719,20.0163494,207.84,207.75,20.0163494]
[1735830757916,1.5758,207.89,207.79,20.0163494]
[1735830757917,20.0163494,207.88,207.79,20.0163494]
[1735830758122,20.0163494,207.88,207.81,20.0163494]
[1735830758595,20.0,207.85,207.77,1.5586]
[1735830758795,6.5758,207.96,207.7,6.0292]
[1735830758796,28.902374,207.86,207.7,6.0292]
[1735830759105,20.0163494,207.78,207.7,26.0455494]
[1735830759300,20.0163494,207.78,207.71,0.12549]
[1735830761122,20.0163494,207.78,207.7,26.0455494]
[1735830761304,20.0163494,207.78,207.7,6.0292]
[1735830762141,20.0163494,207.76,207.69,1.5]
[1735830762736,20.0,207.75,207.7,20.1418394]
[1735830762937,32.0487494,207.78,207.7,20.1418394]
[1735830764426,20.0163494,207.76,207.7,0.12549]
[1735830765312,20.0163494,207.78,207.7,44.0442134]
[1735830765517,20.0,207.77,207.72,20.0163494]
[1735830766019,32.0459494,207.82,207.75,0.12549]
[1735830766322,20.0163494,207.84,207.76,20.0163494]
[1735830766550,20.0163494,207.84,207.77,0.12549]
[1735830767505,20.0163494,207.87,207.79,0.12549]
[1735830768109,20.0163494,207.83,207.76,26.1251494]
[1735830769216,20.0163494,207.83,207.77,0.12549]
[1735830769415,20.0,207.82,207.77,0.12549]
[1735830772207,20.0163494,207.83,207.76,26.1251494]
[1735830772518,12.0299,207.82,207.76,26.1251494]
[1735830772919,20.0163494,207.83,207.76,26.1251494]
[1735830773349,20.0,207.87,207.79,20.1418394]
[1735830773350,20.0163494,207.87,207.79,20.1418394]
[1735830773513,32.0425494,207.88,207.8,20.0163494]
[1735830773707,20.0163494,207.87,207.8,20.0163494]
[1735830774416,20.0163494,207.92,207.85,20.0163494]
[1735830774629,20.0163494,207.94,207.86,20.0163494]
[1735830774843,20.0163494,207.95,207.88,20.0163494]
[1735830775015,20.0,207.92,207.89,20.0163494]
[1735830775212,20.0163494,207.96,207.89,20.0163494]
[1735830775423,20.0163494,207.98,207.89,20.0163494]
[1735830775722,32.0365494,207.99,207.91,20.0163494]
[1735830775916,32.0365494,207.99,207.92,20.0163494]
[1735830776636,20.0163494,207.98,207.91,0.12549]
[1735830776840,20.0163494,207.96,207.89,20.0163494]
[1735830777023,36.0523,208.03,207.88,6.6187]
[1735830777024,20.0163494,207.95,207.88,6.6187]
[1735830777222,24.027864,208.02,207.88,26.6350494]
[1735830777223,20.0163494,207.96,207.88,26.6350494]
[1735830777526,20.0163494,207.96,207.89,20.0163494]
[1735830777720,20.0163494,207.96,207.88,26.6350494]
[1735830777921,32.0392494,207.94,207.88,6.6187]
[1735830778159,32.0392494,207.94,207.81,2.28610475]
[1735830778160,40.0163494,207.91,207.84,20.0163494]
[1735830778374,20.0163494,207.87,207.83,6.1064]
[1735830778657,20.0163494,207.88,207.83,6.1064]
[1735830779027,20.0,207.86,207.83,6.1064]
[1735830779222,20.0,207.86,207.81,1.5647]
[1735830779417,20.0,207.84,207.81,1.5647]
[1735830780036,20.0,207.85,207.81,21.5810494]
[1735830780532,20.0,207.86,207.81,21.5810494]
[1735830780850,20.0,207.85,207.81,21.5810494]
[1735830781554,20.0163494,207.88,207.81,21.5810494]
[1735830781725,20.0163494,207.9,207.83,20.0163494]
[1735830781926,24.0427,207.97,207.87,20.0163494]
[1735830781927,20.0163494,207.95,207.87,20.0163494]
[1735830782754,20.0163494,207.94,207.88,0.12549]
[1735830782961,20.0163494,207.92,207.83,20.0163494]
[1735830783252,20.0163494,207.9,207.82,44.1697034]
[1735830783428,20.0163494,207.91,207.84,0.12549]
[1735830783622,20.0163494,207.9,207.82,20.1418394]
[1735830783824,20.0163494,207.9,207.82,20.0163494]
[1735830784058,20.0,207.85,207.81,1.5647]
[1735830784528,40.0163494,207.85,207.79,0.12549]
[1735830784730,20.0163494,207.83,207.78,6.4184]
[1735830785051,40.0163494,207.85,207.78,26.4347494]
[1735830785358,20.0,207.85,207.8,20.0163494]
[1735830786027,1.6157,207.93,207.8,20.0163494]
[1735830786028,20.0163494,207.89,207.82,20.0163494]
[1735830786350,6.5344,207.99,207.85,20.0163494]
[1735830786351,20.0163494,207.93,207.85,20.0163494]
[1735830786537,20.0163494,207.91,207.83,20.0163494]
[1735830786735,20.0163494,207.91,207.79,0.72159247]
[1735830786736,20.0163494,207.89,207.82,20.0163494]
[1735830786930,20.0163494,207.88,207.81,20.0163494]
[1735830787752,20.0163494,207.9,207.83,20.0163494]
[1735830787956,12.0228,207.94,207.87,20.0163494]
[1735830787957,32.0391494,207.94,207.87,20.0163494]
[1735830788161,20.0163494,207.96,207.89,20.0163494]
[1735830788359,20.0163494,207.96,207.89,28.2189494]
[1735830790058,20.0,207.95,207.9,0.25098]
[1735830790363,20.0163494,208.0,207.91,20.0163494]
[1735830790749,20.0163494,208.0,207.93,20.0163494]
[1735830791256,20.0,207.98,207.94,0.12549]
[1735830791629,12.0187,208.01,207.94,0.12549]
[1735830792031,20.0163494,208.04,207.96,0.12549]
[1735830792327,20.0163494,208.06,207.99,20.0163494]
[1735830792545,20.0163494,208.1,208.01,26.3327494]
[1735830792839,20.0163494,208.14,208.05,20.0163494]
[1735830793446,20.0,208.11,208.05,20.0163494]
[1735830793651,20.0,208.09,208.03,20.0163494]
[1735830793846,20.0,208.09,208.01,7.9442]
[1735830793847,20.0,208.09,208.06,0.12549]
[1735830794246,20.0163494,208.12,208.06,0.12549]
[1735830794446,20.0,208.11,208.06,0.12549]
[1735830795064,20.0,208.09,208.05,20.0163494]
[1735830795437,20.0,208.09,208.01,8.66510242]
[1735830795438,20.0163494,208.16,208.08,0.25098]
[1735830795650,20.0,208.13,208.09,20.0163494]
[1735830796364,20.0,208.13,208.1,0.12549]
[1735830796660,20.0163494,208.16,208.1,0.12549]
[1735830797468,20.0,208.11,208.05,20.0163494]
[1735830798176,20.0163494,208.12,208.05,20.0163494]
[1735830798374,20.0,208.16,208.01,8.66504995]
[1735830798375,20.0163494,208.1,208.04,0.12549]
[1735830798575,20.0,208.16,208.04,0.12549]
[1735830798576,32.0288494,208.12,208.04,0.12549]
[1735830799642,20.0,208.11,208.06,0.12549]
[1735830800376,20.0,208.13,208.08,0.12549]
[1735830800744,20.0163494,208.16,208.07,20.2673294]
[1735830801150,20.0163494,208.16,208.09,20.0163494]
[1735830802341,20.0163494,208.13,208.07,0.12549]
[1735830802669,20.0163494,208.13,208.05,20.0163494]
[1735830802852,20.0163494,208.15,208.08,0.12549]
[1735830803569,20.0163494,208.14,208.08,0.12549]
[1735830803780,20.0163494,208.13,208.05,20.0163494]
[1735830803950,20.0163494,208.14,208.06,20.2673294]
[1735830804569,20.0163494,208.13,208.06,0.25098]
[1735830805384,20.0163494,208.1,208.04,19.246691]
[1735830805588,20.0163494,208.09,208.01,27.9605494]
[1735830805746,20.0163494,208.11,208.03,20.0163494]
[1735830806081,20.0,208.08,208.03,20.0163494]
[1735830806453,20.0163494,208.07,208.01,7.9442]
[1735830807079,20.0163494,208.05,208.01,6.3164]
[1735830807245,20.0163494,208.04,207.96,27.8310494]
[1735830807448,20.0163494,208.0,207.96,6.2243]
[1735830807686,20.0163494,208.0,207.92,20.0163494]
[1735830808051,20.0163494,208.0,207.93,0.12549]
[1735830808246,20.0,208.05,207.93,20.1418394]
[1735830808484,20.0163494,207.98,207.91,27.8310494]
[1735830808695,20.0163494,207.98,207.91,7.8147]
[1735830809167,20.0163494,207.96,207.91,7.8147]
[1735830809367,20.0163494,207.96,207.91,6.2243]
[1735830810084,20.0163494,207.98,207.91,6.2243]
[1735830810296,20.0,207.97,207.94,20.0163494]
[1735830810583,20.0,207.97,207.92,20.0163494]
[1735830811285,20.0163494,208.0,207.92,20.0163494]
[1735830812585,20.0163494,208.0,207.93,0.12549]
[1735830812892,20.0163494,208.02,207.95,0.25098]
[1735830813057,20.0163494,208.06,207.99,0.12549]
[1735830813391,20.0163494,208.06,207.99,24.153354]
[1735830814498,20.0163494,208.08,208.01,0.12549]
[1735830814994,20.0,208.05,208.01,0.12549]
[1735830815369,20.0163494,208.08,208.01,0.12549]
[1735830819398,20.0163494,208.06,207.98,20.0163494]
[1735830819695,20.0163494,208.0,207.92,20.0163494]
[1735830819898,20.0163494,207.98,207.91,7.7591]
[1735830820062,20.0163494,207.98,207.92,0.12549]
[1735830820394,12.51234453,207.98,207.91,7.7591]
[1735830822403,12.0199,207.99,207.92,0.12549]
[1735830822404,32.03727052,207.99,207.92,0.12549]
[1735830822602,20.0,207.98,207.93,20.01737052]
[1735830822767,1.89372543,208.07,207.92,0.25098]
[1735830822768,20.01737052,208.03,207.96,0.12549]
[1735830825380,20.01737052,208.03,207.98,0.25098]
[1735830825588,40.01737052,208.05,207.98,0.25098]
[1735830825900,20.01737052,208.07,208.0,0.25098]
[1735830826204,12.0146,208.08,207.92,5.0]
[1735830826383,20.01737052,208.04,207.96,20.01737052]
[1735830826796,20.01737052,208.04,207.97,0.25098]
[1735830828688,20.01737052,208.04,207.97,0.12549]
[1735830828891,20.01737052,208.02,207.95,0.25098]
[1735830830200,20.01737052,207.99,207.92,20.01737052]
[1735830830498,20.01737052,207.97,207.91,7.7591]
[1735830831072,20.01737052,207.96,207.91,7.7591]
[1735830832878,20.01737052,207.98,207.91,7.7591]
[1735830833197,20.0,207.97,207.92,0.25098]
[1735830834603,20.01737052,207.98,207.92,0.12549]
[1735830834900,20.01737052,207.98,207.91,27.77647052]
[1735830834901,20.01737052,207.97,207.91,7.7591]
[1735830835410,40.01737052,207.99,207.92,0.12549]
[1735830836188,40.01737052,207.99,207.92,0.25098]
[1735830837522,1.6075,208.06,207.92,0.25098]
[1735830837523,20.01737052,208.01,207.95,0.12549]
[1735830837698,8.15533745,208.11,207.93,20.14286052]
[1735830837699,20.01737052,208.05,207.98,0.12549]
[1735830837901,20.01737052,208.05,207.97,20.01737052]
[1735830838811,20.01737052,208.13,208.04,0.25098]
[1735830839014,20.01737052,208.13,208.05,20.01737052]
[1735830839597,20.01737052,208.11,208.04,0.25098]
[1735830839799,20.01737052,208.11,208.03,22.27966251]
[1735830840002,20.01737052,208.09,208.03,1.5415]
[1735830840222,20.01737052,208.09,208.02,6.2113]
[1735830840403,20.01737052,208.07,208.02,6.2113]
[1735830842518,20.01737052,208.03,207.98,1.635]
[1735830842722,20.01737052,208.0,207.94,19.256031]
[1735830842927,20.01737052,207.97,207.92,15.34749871]